[Event "31st MPL National U18G Chess-ch 2022"]
[Site "Pollachi"]
[Date "2022.04.22"]
[Round "9.1"]
[White "Chinnam Vyshnavi"]
[Black "Bhagyashree Patil"]
[Result "0-1"]
[ECO "A14"]
[WhiteElo "1721"]
[BlackElo "1974"]
[Annotator "TA"]
[PlyCount "146"]
[EventDate "2022.04.18"]
[EventCountry "IND"]
[SourceTitle "playchess.com"]
[Source "ChessBase"]
[SourceQuality "1"]
[TimeControl "5400+30"]

{[%evp 19,145,9,26,-14,21,12,10,9,11,0,9,20,18,14,15,14,20,22,19,20,21,15,91,14,16,23,84,79,73,88,85,88,83,74,75,74,89,80,97,85,85,86,189,187,173,75,81,0,0,0,102,0,0,0,0,0,0,0,0,0,0,-60,-29,-199,-201,-188,-189,-593,-591,-591,0,-571,-545,-480,-314,-310,-43,-68,-70,-173,-154,-337,-368,-340,-346,-325,-323,-634,-624,-666,-637,-593,-512,-1029,-1566,-1658,-1281,-914,-872,-12845,-12843,-12845,-12843,-12847,-12847,-12847,-12847,-12848,-12848,-12850,-12850,-12850,-12850,-12850,-12850,-12850,-27999,-27999,-27999,-27999,-27999,-27999,-27998,-27999,-27999,-27999,-27999,-29999]} 1. Nf3 {[%emt 0:00:03]} d5 {[%emt 0:00:05]} 2. c4 {[%emt 0:00:14]} e6 {[%emt 0:00:04]} 3. b3 {[%emt 0:00:09]} Nf6 {[%emt 0:00:15]} 4. Bb2 {[%emt 0:00:09]} Be7 {[%emt 0:00:26]} 5. g3 {[%emt 0:00:27]} b6 {[%emt 0:00:07]} 6. Bg2 {[%emt 0:00:05]} Bb7 {[%emt 0:00:03]} 7. O-O {[%emt 0:00:09]} O-O {[%emt 0:01:54]} 8. e3 {[%emt 0:00:05]} Nbd7 {[%emt 0:03:26]} 9. d4 {[%emt 0:07:59]} c5 {[%emt 0:00:29]} 10. cxd5 {[%emt 0:00:24]} Nxd5 {[%emt 0:00:56]} 11. Nc3 {[%emt 0:03:09] A14: English Opening: 1...e6 with b3 by White.} N7f6 {[%emt 0:05:05]} 12. Qe2 {[%emt 0:03:07]} Rc8 {[%emt 0:12:48]} 13. Nxd5 {[%emt 0:02:17] The position is equal.} Bxd5 {[%emt 0:01:32]} 14. dxc5 {[%emt 0:02:48]} Bxc5 {[%emt 0:01:23]} 15. Rfd1 {[%emt 0:01:56]} Qe7 {[%emt 0:01:44] [#]} 16. Rac1 $146 {[%emt 0:02:17]} ({Predecessor:} 16. Ne5 Ba3 17. Bxa3 Qxa3 18. e4 Ba8 19. Nc4 Qe7 20. Rd3 e5 21. Rad1 g6 22. Nd6 {½-½ (70) Sonis,F (2448)-Zhigalko,S (2610) Porticcio 2018}) 16... Rfd8 {[%emt 0:03:43]} 17. Ne5 {[%emt 0:06:11]} Bxg2 {[%emt 0:06:23]} 18. Kxg2 {[%emt 0:00:11]} Qb7+ {[%emt 0:00:06]} 19. Qf3 {[%emt 0:02:50]} Qxf3+ {[%emt 0:02:59]} 20. Kxf3 {[%emt 0:02:03]} Kf8 {[%emt 0:00:45]} (20... Rxd1 $11 {keeps the balance.} 21. Rxd1 Be7) 21. g4 {[%emt 0:04:38]} (21. Rxd8+ $1 $16 Rxd8 22. b4) 21... Rxd1 $11 {[%emt 0:11:17]} 22. Rxd1 {[%emt 0:04:22]} Rc7 {[%emt 0:03:44]} (22... Be7 $11) 23. g5 $16 {[%emt 0:03:42]} Ne8 {[%emt 0:00:38]} 24. Nd7+ $1 {[%emt 0:09:41]} Ke7 {[%emt 0:00:08]} 25. Nxc5 {[%emt 0:00:34]} bxc5 {[%emt 0:00:03][%mdl 4096] Endgame KRB-KRN} 26. Rc1 {[%emt 0:04:25]} Kd6 {[%emt 0:03:02]} 27. Ke4 {[%emt 0:02:30]} f6 {[%emt 0:01:12] Inhibits Be5+.} 28. f4 {[%emt 0:01:12]} Kc6 {[%emt 0:01:31]} 29. b4 {[%emt 0:08:42]} Nd6+ {[%emt 0:03:34]} 30. Kf3 {[%emt 0:00:26]} c4 {[%emt 0:00:01]} (30... Kb5 $16 {was called for.}) 31. gxf6 $18 {[%emt 0:00:26]} gxf6 {[%emt 0:00:02]} 32. Bxf6 {[%emt 0:00:09]} (32. a4 $1 $18 {has better winning chances.}) 32... Kb5 $16 {[%emt 0:00:13]} 33. Bc3 {[%emt 0:01:12]} ({White should try} 33. Be5 $16 Rc6 34. a3) 33... Rc6 $11 {[%emt 0:01:19]} 34. h4 {[%emt 0:07:08]} Ka4 {[%emt 0:00:43]} (34... Ra6 $11 {remains equal.}) 35. Bd4 {[%emt 0:09:32]} (35. e4 $16) 35... Kxb4 {[%emt 0:01:27]} 36. Bxa7 {[%emt 0:00:11]} Nb5 {[%emt 0:06:09]} 37. Bb8 {[%emt 0:02:41]} Ra6 {[%emt 0:05:33]} 38. Rc2 {[%emt 0:00:30]} c3 {[%emt 0:00:04]} 39. Be5 {[%emt 0:00:31]} Kc4 {[%emt 0:00:24] Strongly threatening ...Kd3.} 40. Ke2 {[%emt 0:02:13]} (40. Ke4 $11) 40... h5 {[%emt 0:01:36][%mdl 1024] Hoping for ...Ra8. Black has compensation.} (40... Ra8 $5 {[%cal Ra8g8]}) 41. Bf6 $2 {[%emt 0:02:06]} (41. e4 $11) 41... Ra8 $1 $19 {[%emt 0:00:22]} 42. Be5 {[%emt 0:00:29]} Rg8 $1 {[%emt 0:04:23]} 43. a4 $2 {[%emt 0:04:56]} (43. Bf6 {is a better chance.}) 43... Rg2+ {[%emt 0:00:24]} 44. Kd1 {[%emt 0:00:11]} Rg1+ {[%emt 0:02:36]} 45. Ke2 {[%emt 0:00:07] [#] Kf2 is the strong threat.} Kb3 $1 {[%emt 0:02:39][%csl LRa4,LRc2]} 46. Kf2 {[%emt 0:00:19] Inhibits Rg2+.} Rb1 {[%emt 0:08:43]} ({Worse is} 46... Kxc2 47. Kxg1 Kb3 48. Bxc3 (48. axb5 $2 c2 $19) 48... Nxc3 49. a5 $11) 47. Re2 {[%emt 0:00:34] [#]} Na7 {[%emt 0:03:40]} ({Not} 47... Kxa4 48. e4 $17) ({Better is} 47... c2 $1 $19 48. Rxc2 Kxc2 49. axb5 Kd3) 48. Bxc3 $1 $15 {[%emt 0:00:58]} Kxc3 {[%emt 0:00:02] KRN-KR} 49. e4 {[%emt 0:00:54]} (49. f5 $15) 49... Kd4 {[%emt 0:00:13]} 50. e5 $2 {[%emt 0:01:16]} (50. Rc2 $17) 50... Nc6 $19 {[%emt 0:01:41]} 51. f5 {[%emt 0:00:44]} exf5 {[%emt 0:01:04]} 52. e6 {[%emt 0:00:06]} Ne7 {[%emt 0:00:20]} 53. Ra2 {[%emt 0:00:29] Against Ra1} (53. Kg3) 53... Rb6 {[%emt 0:00:46]} 54. a5 {[%emt 0:00:09]} Ra6 {[%emt 0:00:11]} 55. Kf3 {[%emt 0:00:27]} Ke5 {[%emt 0:00:04]} 56. Rg2 {[%emt 0:02:19]} (56. Re2+ $142 Kf6 57. Ra2) 56... Rxa5 {[%emt 0:01:22] And now ...Ra3+ would win.} 57. Rg5 {[%emt 0:00:07]} Ra3+ {[%emt 0:00:39]} 58. Kg2 {[%emt 0:00:15]} Kxe6 {[%emt 0:00:22]} 59. Rxh5 {[%emt 0:00:09]} f4 {[%emt 0:01:40]} 60. Rb5 {[%emt 0:01:20]} Nf5 {[%emt 0:00:28]} 61. h5 {[%emt 0:00:23]} Kf6 {[%emt 0:00:38]} 62. Rb4 {[%emt 0:00:41]} Kg5 {[%emt 0:00:11]} 63. Rb5 {[%emt 0:00:27]} Kg4 {[%emt 0:00:15]} 64. Rb8 {[%emt 0:00:13]} Ne3+ {[%emt 0:00:43]} 65. Kh1 {[%emt 0:00:23]} Ra1+ {[%emt 0:00:21]} 66. Kh2 {[%emt 0:00:10]} Ra2+ {[%emt 0:00:01]} 67. Kh1 {[%emt 0:00:09]} Kxh5 {[%emt 0:00:29]} 68. Rg8 {[%emt 0:00:13] Black mates.} Kh4 {[%emt 0:00:09]} 69. Rg1 {[%emt 0:00:44]} Kh3 {[%emt 0:00:21]} 70. Re1 {[%emt 0:00:23]} f3 {[%emt 0:00:15]} 71. Rf1 {[%emt 0:01:50]} Nxf1 {[%emt 0:00:15]} 72. Kg1 {[%emt 0:00:03]} Ne3 {[%emt 0:00:05]} 73. Kh1 {[%emt 0:00:03]} Ra1# {[%emt 0:00:03] Black used his chance.  Weighted Error Value: White=0.65/Black=0.23 (precise)} 0-1

[Event "31st MPL National U18G Chess-ch 2022"]
[Site "Pollachi"]
[Date "2022.04.22"]
[Round "9.2"]
[White "Sachi Jain"]
[Black "Rindhiya V"]
[Result "0-1"]
[ECO "C44"]
[WhiteElo "1401"]
[BlackElo "1949"]
[Annotator "TA"]
[PlyCount "80"]
[EventDate "2022.04.18"]
[EventCountry "IND"]
[SourceTitle "playchess.com"]
[Source "ChessBase"]
[SourceQuality "1"]
[TimeControl "5400+30"]

{[%evp 9,80,80,135,128,130,142,156,86,83,53,66,38,35,29,27,28,17,0,0,0,-2,-15,-25,-38,0,0,42,42,56,37,27,18,30,-70,0,0,18,-16,0,-113,-114,-449,-478,-474,-447,-485,-468,-2729,-2388,-4894,-4894,-1352,-1268,-29983,-1295,-12823,-12816,-12829,-12831,-12831,-12831,-12832,-12832,-12832,-12831,-12831,-12825,-12836,-12836,-12836,-12836,-12836,-1823]} 1. e4 {[%emt 0:00:17]} e5 {[%emt 0:00:04]} 2. Nf3 {[%emt 0:00:22]} Nc6 {[%emt 0:00:04]} 3. c3 {[%emt 0:00:25]} d5 {[%emt 0:02:32]} 4. Qa4 {[%emt 0:01:01]} dxe4 {[%emt 0:10:14]} 5. Nxe5 {[%emt 0:00:49]} Bd7 {[%emt 0:06:00]} (5... Qd6 $142 6. Nxc6 (6. Bb5 Nf6 $11) 6... bxc6) 6. Nxd7 $16 {[%emt 0:03:24] C44: Ponziani Opening and Scotch Gambit.} ({Weaker is} 6. Qxe4 Qe7 7. d4 f6 $17) 6... Qxd7 {[%emt 0:00:24]} 7. Qxe4+ {[%emt 0:00:10]} Be7 {[%emt 0:00:07]} 8. Bb5 {[%emt 0:04:41]} (8. d4 $142) 8... Nf6 {[%emt 0:00:31]} 9. Bxc6 {[%emt 0:02:29]} bxc6 {[%emt 0:00:02]} 10. Qe2 {[%emt 0:00:03]} O-O {[%emt 0:00:25]} 11. O-O {[%emt 0:00:08]} Rfe8 {[%emt 0:01:22]} 12. d4 {[%emt 0:03:55] [#]} c5 $146 {[%emt 0:00:24]} ({Predecessor:} 12... Bd6 13. Qf3 Ng4 14. g3 c5 15. d5 Rab8 16. b3 Ne5 17. Qg2 c4 18. b4 Nd3 {0-1 (49) Cagara,P (2045)-Roebers,J (2154) Chess.com INT 2021}) 13. Be3 {[%emt 0:16:07]} cxd4 {[%emt 0:02:12]} 14. cxd4 {[%emt 0:00:36]} Ng4 {[%emt 0:30:28][%cal Oe7g5] Hoping for ...Bg5!} 15. Qd2 {[%emt 0:13:09]} Nxe3 {[%emt 0:10:59]} ({Don't do} 15... Qd6 16. Bf4 Qb6 17. h3 $16) 16. fxe3 {[%emt 0:00:11]} c5 {[%emt 0:07:07] ...Bg5 is the strong threat.} (16... Bg5 $5 {[%cal Rg5e3]} 17. Rf3 Qe6 $15) 17. d5 {[%emt 0:04:59]} Bf6 {[%emt 0:06:25]} (17... Bg5 $5 {[%cal Rg5e3]} 18. Rf3 Qe7 $11) 18. Nc3 {[%emt 0:03:23]} Rab8 {[%emt 0:08:10]} 19. Rae1 {[%emt 0:04:08]} Rb4 {[%emt 0:02:32]} 20. Re2 {[%emt 0:04:46]} Reb8 {[%emt 0:00:38]} 21. e4 {[%emt 0:05:29]} ({Better is} 21. b3 $11) 21... Be5 {[%emt 0:04:39]} (21... Rxb2 $15 22. Qxb2 Rxb2 23. Rxb2 Be5) 22. Nd1 $1 $11 {[%emt 0:06:50]} c4 {[%emt 0:00:32]} 23. a3 {[%emt 0:06:22]} Rb3 {[%emt 0:00:17]} 24. Rf3 {[%emt 0:00:01]} (24. Qg5 $11 f6 25. Qh5) 24... Qc7 $17 {[%emt 0:01:52] aiming for ...Rxb2. &Nero is more active.} 25. h3 $2 {[%emt 0:01:07][%mdl 8192] [#] Loses the game.} (25. Kf1 $17) 25... Rxb2 $1 $19 {[%emt 0:01:45][%mdl 64] Remove Defender, Deflection, Decoy} 26. Nxb2 {[%emt 0:11:42] [#]} c3 $1 {[%emt 0:00:15][%mdl 64] Deflection, Double Attack} 27. Qd3 {[%emt 0:00:01]} ({Of course not} 27. Rxc3 Bxc3 28. Qd1 Bxb2 $19) 27... cxb2 {[%emt 0:00:19]} 28. Rf1 {[%emt 0:00:02]} (28. Re1 $142 Qb6+ 29. Kf1) 28... Qb6+ {[%emt 0:00:51]} 29. Re3 {[%emt 0:02:33]} b1=Q {[%emt 0:03:50]} 30. Rxb1 {[%emt 0:00:09]} Qxb1+ {[%emt 0:00:00]} 31. Kf2 {[%emt 0:00:24]} Qb2+ {[%emt 0:00:01]} (31... Rb2+ $142 32. Kf3 Qg1 33. Qe2 Rxe2 34. Kxe2 Qxg2+ 35. Kd3 Qf1+ 36. Re2 Bf4 37. d6 Qd1+ 38. Kc4 Qxe2+ 39. Kd4 Qd2+ 40. Kc5 Bxd6+ 41. Kc4 a6 42. a4 Be5 43. Kc5 Qd6+ 44. Kc4 Qd4+ 45. Kb3 Qc3+ 46. Ka2 Qb2#) 32. Re2 {[%emt 0:01:18] Black is clearly winning.} Bd4+ {[%emt 0:00:20]} 33. Kf3 {[%emt 0:00:03] [#]} Rb3 $1 {[%emt 0:00:13]} 34. Rxb2 {[%emt 0:00:01]} Rxd3+ {[%emt 0:00:02][%mdl 4096] Endgame KRB-KR} 35. Ke2 {[%emt 0:00:07]} Re3+ {[%emt 0:00:25]} 36. Kd2 {[%emt 0:00:05]} Bxb2 {[%emt 0:00:03]} 37. Kxe3 {[%emt 0:00:04]} Bxa3 {[%emt 0:00:03]} 38. e5 {[%emt 0:00:06]} Kf8 {[%emt 0:00:23]} 39. Ke4 {[%emt 0:00:12]} Ke7 {[%emt 0:00:06]} 40. g4 {[%emt 0:00:13]} a5 {[%emt 0:00:05] Weighted Error Value: White=1.04/Black=0.28 (precise)} 0-1

[Event "31st MPL National U18G Chess-ch 2022"]
[Site "Pollachi"]
[Date "2022.04.22"]
[Round "9.3"]
[White "Vijayasubhasri S"]
[Black "Keerti Shree Reddy"]
[Result "0-1"]
[ECO "B00"]
[WhiteElo "1571"]
[BlackElo "1721"]
[Annotator "NA RC COMBH"]
[PlyCount "202"]
[EventDate "2022.04.18"]
[EventCountry "IND"]
[SourceTitle "playchess.com"]
[Source "ChessBase"]
[SourceQuality "1"]
[TimeControl "5400+30"]

1. e4 {[%emt 0:00:04]} a6 {[%emt 0:01:23]} 2. d4 {[%emt 0:00:17]} b5 {[%emt 0:00:07]} 3. Be3 {[%emt 0:01:37]} Bb7 {[%emt 0:00:09]} 4. Bd3 {[%emt 0:00:09]} Nf6 {[%emt 0:03:50]} 5. Nd2 {[%emt 0:00:20]} e6 {[%emt 0:01:19]} 6. Nh3 {[%emt 0:07:52]} d6 {[%emt 0:02:16]} 7. O-O {[%emt 0:02:29]} c5 {[%emt 0:03:14]} 8. c3 {[%emt 0:05:26]} Nc6 {[%emt 1:22:12]} 9. Rc1 {[%emt 0:06:22]} Be7 {[%emt 0:00:00]} 10. Bb1 {[%emt 0:06:31]} h5 {[%emt 0:00:00]} 11. f3 {[%emt 0:04:44]} Qb6 {[%emt 0:00:00]} 12. dxc5 {[%emt 0:10:04]} dxc5 {[%emt 0:00:00]} 13. Qe1 {[%emt 0:01:09]} Bd6 {[%emt 0:00:00]} 14. Kh1 {[%emt 0:11:30]} Qc7 {[%emt 0:00:00]} 15. f4 {[%emt 0:10:40]} Ng4 {[%emt 0:00:00]} 16. e5 {[%emt 0:01:48]} Be7 {[%emt 0:00:00]} 17. Ne4 {[%emt 0:00:25]} Na5 {[%emt 0:00:00]} 18. Bg1 {[%emt 0:05:21]} Nc4 {[%emt 0:00:00]} 19. Qe2 {[%emt 0:03:37]} Bd5 {[%emt 0:00:00]} 20. Bd3 {[%emt 0:05:27]} Qc6 {[%emt 0:00:00]} 21. b3 {[%emt 0:03:28]} Nb6 {[%emt 0:00:01]} 22. c4 {[%emt 0:02:38]} bxc4 {[%emt 0:01:06]} 23. bxc4 {[%emt 0:00:07]} Nxc4 {[%emt 0:00:52]} 24. Rxc4 {[%emt 0:00:08]} Bxc4 {[%emt 0:00:07]} 25. Bxc4 {[%emt 0:00:04]} O-O {[%emt 0:01:13]} 26. Nhf2 {[%emt 0:02:47]} Nxf2+ {[%emt 0:00:52]} 27. Bxf2 {[%emt 0:00:08]} Rab8 {[%emt 0:00:41]} 28. Nc3 {[%emt 0:02:53]} Rb4 {[%emt 0:01:12]} 29. a3 {[%emt 0:01:15]} Rb6 {[%emt 0:00:21]} 30. Be3 {[%emt 0:00:59]} g6 {[%emt 0:01:06]} 31. Bc1 {[%emt 0:02:08]} Rd8 {[%emt 0:01:59]} 32. Be3 {[%emt 0:02:23]} Rdb8 {[%emt 0:00:16]} 33. Bc1 {[%emt 0:00:41]} Rd8 {[%emt 0:00:18]} 34. Rd1 {[%emt 0:01:15]} Rd4 {[%emt 0:00:29]} 35. f5 {[%emt 0:00:41]} Rb8 {[%emt 0:01:16]} 36. f6 {[%emt 0:00:12]} Bf8 {[%emt 0:00:01]} 37. Be3 {[%emt 0:00:34]} Rxd1+ {[%emt 0:02:40]} 38. Nxd1 {[%emt 0:00:10]} Qe4 {[%emt 0:00:00]} 39. Bg1 {[%emt 0:00:52]} Qxe2 {[%emt 0:00:00]} 40. Bxe2 {[%emt 0:00:02]} c4 {[%emt 0:00:53]} 41. Bxc4 {[%emt 0:00:27]} Rb1 {[%emt 0:00:02]} 42. Be2 {[%emt 0:00:19]} Bxa3 {[%emt 0:00:12]} 43. h3 {[%emt 0:00:31]} Bb2 {[%emt 0:00:26]} 44. g4 {[%emt 0:01:02]} Bxe5 {[%emt 0:00:35]} 45. g5 {[%emt 0:00:31]} a5 {[%emt 0:00:27]} 46. Kg2 {[%emt 0:00:12]} a4 {[%emt 0:00:23]} 47. Bc5 {[%emt 0:00:20]} Ra1 {[%emt 0:01:02]} 48. Ne3 {[%emt 0:01:00]} Rc1 {[%emt 0:00:56]} 49. Nc4 {[%emt 0:00:38]} Bb2 {[%emt 0:00:32]} 50. Nxb2 {[%emt 0:00:40]} Rxc5 {[%emt 0:00:01]} 51. Nxa4 {[%emt 0:00:10]} Rxg5+ {[%emt 0:00:02]} 52. Kf3 {[%emt 0:00:28]} Rf5+ {[%emt 0:00:02]} 53. Ke3 {[%emt 0:00:16]} Rxf6 {[%emt 0:00:07]} 54. Bd3 {[%emt 0:00:38]} e5 {[%emt 0:00:32]} 55. Nb2 {[%emt 0:00:32]} Re6 {[%emt 0:00:29]} 56. Na4 {[%emt 0:00:48]} Kg7 {[%emt 0:00:20]} 57. Ke4 {[%emt 0:00:35]} f5+ {[%emt 0:00:33]} 58. Kd5 {[%emt 0:00:09]} Re8 {[%emt 0:00:07]} 59. Nc5 {[%emt 0:00:13]} e4 {[%emt 0:00:29]} 60. Bb5 {[%emt 0:00:59]} Rb8 {[%emt 0:01:15]} 61. Ne6+ {[%emt 0:00:11]} Kf6 {[%emt 0:00:21]} 62. Bc4 {[%emt 0:00:29]} Rb1 {[%emt 0:00:26]} 63. Nf4 {[%emt 0:00:58]} Rd1+ {[%emt 0:00:33]} 64. Kc5 {[%emt 0:00:19]} h4 {[%emt 0:00:25]} 65. Nd5+ {[%emt 0:00:46]} Ke5 {[%emt 0:00:23]} 66. Ne7 {[%emt 0:00:24]} g5 {[%emt 0:00:27]} 67. Ng6+ {[%emt 0:00:25]} Kf6 {[%emt 0:00:12]} 68. Nf8 {[%emt 0:00:06]} e3 {[%emt 0:00:17]} 69. Nh7+ {[%emt 0:00:17]} Kg6 {[%emt 0:00:21]} 70. Nf8+ {[%emt 0:00:03]} Kg7 {[%emt 0:00:15]} 71. Ne6+ {[%emt 0:00:12]} Kf6 {[%emt 0:00:09]} 72. Nd4 {[%emt 0:00:05]} f4 {[%emt 0:00:36]} 73. Be2 {[%emt 0:00:59]} Rh1 {[%emt 0:00:52]} 74. Bg4 {[%emt 0:00:50]} Rg1 {[%emt 0:00:26]} 75. Be2 {[%emt 0:01:10]} Rg3 {[%emt 0:00:18]} 76. Kd5 {[%emt 0:00:10]} Rxh3 {[%emt 0:00:17]} 77. Ke4 {[%emt 0:00:06]} Rh2 {[%emt 0:00:44]} 78. Bg4 {[%emt 0:00:54]} Rg2 {[%emt 0:00:19]} 79. Bf3 {[%emt 0:00:16]} Ra2 {[%emt 0:00:42]} 80. Bg4 {[%emt 0:00:17]} h3 {[%emt 0:01:08]} 81. Bxh3 {[%emt 0:01:18]} e2 {[%emt 0:00:07]} 82. Nxe2 {[%emt 0:00:57]} Rxe2+ {[%emt 0:00:05]} 83. Kf3 {[%emt 0:00:04]} Re3+ {[%emt 0:00:15]} 84. Kg2 {[%emt 0:00:05]} Rxh3 {[%emt 0:00:36]} 85. Kxh3 {[%emt 0:00:18]} Kf5 {[%emt 0:00:04]} 86. Kg2 {[%emt 0:00:16]} Kg4 {[%emt 0:00:15]} 87. Kf2 {[%emt 0:00:17]} f3 {[%emt 0:00:11]} 88. Kf1 {[%emt 0:00:52]} Kg3 {[%emt 0:00:04]} 89. Kg1 {[%emt 0:00:10]} f2+ {[%emt 0:00:05]} 90. Kf1 {[%emt 0:00:14]} g4 {[%emt 0:00:03]} 91. Ke2 {[%emt 0:00:18]} Kg2 {[%emt 0:00:02]} 92. Ke3 {[%emt 0:00:17]} f1=Q {[%emt 0:00:09]} 93. Kd4 {[%emt 0:00:11]} Kh2 {[%emt 0:00:07]} 94. Kd5 {[%emt 0:00:13]} g3 {[%emt 0:00:03]} 95. Ke5 {[%emt 0:00:16]} g2 {[%emt 0:00:06]} 96. Kd4 {[%emt 0:00:11]} g1=Q+ {[%emt 0:00:06]} 97. Kd5 {[%emt 0:00:14]} Qg5+ {[%emt 0:00:07]} 98. Kd4 {[%emt 0:00:27]} Qff4+ {[%emt 0:00:07]} 99. Kc3 {[%emt 0:00:21]} Qgg3+ {[%emt 0:00:05]} 100. Kc2 {[%emt 0:00:08]} Qff2+ {[%emt 0:00:04]} 101. Kb1 {[%emt 0:00:08]} Qgg1# {[%emt 0:00:03]} 0-1

[Event "31st MPL National U18G Chess-ch 2022"]
[Site "Pollachi"]
[Date "2022.04.22"]
[Round "9.4"]
[White "Sasvatha A"]
[Black "Anupam M Sreekumar"]
[Result "1/2-1/2"]
[ECO "E12"]
[WhiteElo "1756"]
[BlackElo "1724"]
[Annotator "NA RC COMBH"]
[PlyCount "80"]
[EventDate "2022.04.18"]
[EventCountry "IND"]
[SourceTitle "playchess.com"]
[Source "ChessBase"]
[SourceQuality "1"]
[TimeControl "5400+30"]

1. d4 {[%emt 0:01:29]} d5 {[%emt 0:00:20]} 2. c4 {[%emt 0:00:09]} e6 {[%emt 0:00:06]} 3. Nf3 {[%emt 0:00:06]} Nf6 {[%emt 0:00:08]} 4. Nc3 {[%emt 0:00:06]} Be7 {[%emt 0:00:08]} 5. Bf4 {[%emt 0:00:11]} O-O {[%emt 0:01:06]} 6. e3 {[%emt 0:00:16]} b6 {[%emt 0:02:52]} 7. cxd5 {[%emt 0:01:05]} exd5 {[%emt 0:02:00]} 8. h3 {[%emt 0:02:39]} Bb7 {[%emt 0:01:57]} 9. a3 {[%emt 0:00:17]} c5 {[%emt 0:03:31]} 10. Be2 {[%emt 0:07:23]} Nc6 {[%emt 0:00:54]} 11. dxc5 {[%emt 0:04:36]} bxc5 {[%emt 1:22:58]} 12. Qb3 {[%emt 0:02:38]} Na5 {[%emt 0:00:00]} 13. Qd1 {[%emt 0:08:36]} Qb6 {[%emt 0:00:00]} 14. Na4 {[%emt 0:01:54]} Qb3 {[%emt 0:00:00]} 15. Qxb3 {[%emt 0:13:57]} Nxb3 {[%emt 0:00:00]} 16. Rd1 {[%emt 0:00:45]} Rfd8 {[%emt 0:00:00]} 17. Nc3 {[%emt 0:15:09]} Rac8 {[%emt 0:00:00]} 18. Nb1 {[%emt 0:09:46]} Ne4 {[%emt 0:00:00]} 19. Nbd2 {[%emt 0:02:33]} Nbxd2 {[%emt 0:00:00]} 20. Nxd2 {[%emt 0:00:09]} Nd6 {[%emt 0:00:00]} 21. Nf3 {[%emt 0:05:36]} Bf6 {[%emt 0:00:00]} 22. O-O {[%emt 0:02:31]} Ba8 {[%emt 0:00:00]} 23. Be5 {[%emt 0:04:11]} Bxe5 {[%emt 0:00:00]} 24. Nxe5 {[%emt 0:00:06]} f6 {[%emt 0:00:00]} 25. Nd3 {[%emt 0:01:36]} Nc4 {[%emt 0:00:00]} 26. Rc1 {[%emt 0:01:46]} a5 {[%emt 0:00:00]} 27. Rfe1 {[%emt 0:04:27]} Rb8 {[%emt 0:00:00]} 28. Nxc5 {[%emt 0:00:37]} Rxb2 {[%emt 0:00:00]} 29. Na4 {[%emt 0:05:03]} Rd2 {[%emt 0:00:00]} 30. Bxc4 {[%emt 0:02:32]} dxc4 {[%emt 0:00:00]} 31. Rxc4 {[%emt 0:00:17]} Ra2 {[%emt 0:00:00]} 32. Rec1 {[%emt 0:01:21]} Rxa3 {[%emt 0:02:04]} 33. Rc8 {[%emt 0:01:04]} Rxc8 {[%emt 0:00:53]} 34. Rxc8+ {[%emt 0:00:29]} Kf7 {[%emt 0:00:05]} 35. Nb6 {[%emt 0:00:44]} Be4 {[%emt 0:01:08]} 36. Rc4 {[%emt 0:01:02]} Bd3 {[%emt 0:01:45]} 37. Rd4 {[%emt 0:00:35]} Ba6 {[%emt 0:01:09]} 38. Nd7 {[%emt 0:00:30]} Rd3 {[%emt 0:02:14]} 39. Rxd3 {[%emt 0:00:39]} Bxd3 {[%emt 0:00:07]} 40. Nc5 {[%emt 0:00:06]} Bc4 {[%emt 0:00:45]} 1/2-1/2